fUST/lending_fUST_20240706
["ID","MTS","AMOUNT","RATE_DAILY","PERIOD"]
[331300643,1720200640320,-169.4,0.00043087,31]
[331300644,1720200640330,-169.4,0.00043623,31]
[331300645,1720200640340,-151.0,0.00043836,120]
[331300646,1720200640351,-151.0,0.00044027,120]
[331300647,1720200640361,-169.4,0.00044159,31]
[331300648,1720200640372,-152.80906433,0.00044303,30]
[331300649,1720200640381,-169.4,0.00044695,31]
[331300650,1720200640392,-151.57276842,0.0004477,30]
[331300651,1720200640402,-169.4,0.00045231,31]
[331300652,1720200640412,-151.0,0.0004537,120]
[331300653,1720200640423,-509.539918,0.00045494,2]
[331300654,1720200640433,-151.0,0.00045753,120]
[331300655,1720200640443,-169.4,0.00045767,31]
[331300656,1720200640453,-158.66654338,0.00045954,30]
[331300657,1720200640463,-20000.0,0.00046088,4]
[331300658,1720200640475,-165.722,0.0004624,2]
[331300659,1720200640485,-999.759,0.0004624,2]
[331300660,1720200640494,-2381.36381706,0.000463,120]
[331300661,1720200640503,-169.4,0.00046303,31]
[331300662,1720200640516,-150.73437923,0.00046331,30]
[331300663,1720200640527,-3547.3582862,0.00046475,2]
[331300664,1720200640538,-1000.0,0.00046575,120]
[331300665,1720200640548,-500.0,0.00046575,60]
[331300666,1720200640560,-9209.4,0.00046575,120]
[331300667,1720200640573,-9209.4,0.00046575,120]
[331300668,1720200640584,-9209.4,0.00046575,120]
[331300669,1720200640595,-9209.4,0.00046575,120]
[331300670,1720200640606,-9209.4,0.00046575,120]
[331300671,1720200640616,-9209.4,0.00046575,120]
[331300672,1720200640626,-9209.4,0.00046575,120]
[331300673,1720200640636,-9209.4,0.00046575,120]
[331300674,1720200640646,-9209.4,0.00046575,120]
[331300675,1720200640657,-6081.12242201,0.00046575,120]
[331300676,1720200640673,-3128.27757799,0.00046575,120]
[331300677,1720200640683,-9209.4,0.00046575,120]
[331300678,1720200640694,-9209.4,0.00046575,120]
[331300679,1720200640707,-9209.4,0.00046575,120]
[331300680,1720200640718,-9209.4,0.00046575,120]
[331300681,1720200640730,-9209.4,0.00046575,120]
[331300682,1720200640743,-9209.4,0.00046575,120]
[331300683,1720200640753,-9209.4,0.00046575,120]
[331300684,1720200640763,-9209.4,0.00046575,120]
[331300685,1720200640775,-9209.4,0.00046575,120]
[331300686,1720200640785,-9209.4,0.00046575,120]
[331300687,1720200640796,-9209.4,0.00046575,120]
[331300688,1720200640808,-9209.4,0.00046575,120]
[331300689,1720200640819,-9209.4,0.00046575,120]
[331300690,1720200640828,-9209.54834869,0.00046575,120]
[331300691,1720200640839,-1000.0,0.00046575,120]
[331300692,1720200640849,-1000.0,0.00046575,120]
[331300693,1720200640859,-1000.0,0.00046575,120]
[331300694,1720200640870,-1000.0,0.00046575,120]
[331300695,1720200640880,-1000.0,0.00046575,120]
[331300696,1720200640891,-1000.0,0.00046575,120]
[331300697,1720200640901,-633.25139038,0.00046575,120]
[331300698,1720200640912,-400.0,0.00046575,60]
[331300699,1720200640922,-151.0,0.00046712,120]
[331300700,1720200640932,-169.4,0.00046838,60]
[331300701,1720200640942,-152.0,0.00046838,60]
[331300702,1720200640952,-10013.54163775,0.00047,90]
[331300703,1720200640965,-3000.0,0.00047,2]
[331300704,1720200640977,-39917.885,0.000471,120]
[331300705,1720200640988,-3000.0,0.000471,69]
[331300706,1720200640999,-3000.0,0.0004711,69]
[331300707,1720200641009,-3000.0,0.0004712,69]
[331300708,1720200641019,-153.0,0.00047123,120]
[331300709,1720200641029,-153.0,0.00047123,120]
[331300710,1720200641039,-153.0,0.00047123,120]
[331300711,1720200641049,-153.0,0.00047123,120]
[331300712,1720200641059,-153.0,0.00047123,120]
[331300713,1720200641070,-153.0,0.00047123,120]
[331300714,1720200641080,-153.0,0.00047123,120]
[331300715,1720200641090,-169.4,0.00047374,60]
[331300716,1720200641100,-151.0,0.00047671,120]
[331300717,1720200641109,-300.0,0.00047694,7]
[331300718,1720200641119,-300.0,0.00047809,7]
[331300719,1720200641129,-300.0,0.00047852,7]
[331300720,1720200641139,-169.4,0.0004791,60]
[331300721,1720200641149,-152.0,0.0004791,60]
[331300722,1720200641159,-500.0,0.00047945,60]
[331300723,1720200641169,-155.0,0.00048,55]
[331300724,1720200641180,-166.0,0.00048,90]
[331300725,1720200641190,-156.0,0.00048,90]
[331300726,1720200641200,-151.0,0.00048055,120]
[331300727,1720200641210,-500.0,0.00048296,14]
[331300728,1720200641222,-166.0,0.00048356,90]
[331300729,1720200641232,-373.0,0.000484,25]
[331300730,1720200641243,-169.4,0.00048446,60]
[331300731,1720200641254,-34390.66527748,0.000485,120]
[331300732,1720200641264,-50171.63894726,0.00048555,120]
[331300733,1720200641275,-200.0,0.00048734,120]
[331300734,1720200641285,-2000.0,0.000488,120]
[331300735,1720200641295,-158.66654342,0.00048859,30]
[331300736,1720200641305,-306.030258,0.000489,26]
[331300737,1720200641315,-169.4,0.00048982,60]
[331300738,1720200641325,-10000.0,0.00049,49]
[331300739,1720200641335,-24908.0,0.00049,30]
[331300740,1720200641344,-1000.0,0.00049,49]
[331300741,1720200641354,-1960.36819543,0.00049,120]
[331300742,1720200641364,-150.0,0.0004924,2]
[331300743,1720200641373,-877.0,0.0004924,2]
[331300744,1720200641383,-21998.05593869,0.00049315,61]
[331300759,1720200642541,-55675.67984002,0.00049315,61]
[331300760,1720200642551,-500.0,0.00049315,120]
[331300762,1720200642561,-500.0,0.00049315,120]
[331300763,1720200642571,-500.0,0.00049315,120]
[331300764,1720200642580,-500.31134437,0.00049315,120]
[331300765,1720200642589,-500.0,0.00049315,120]
[331300766,1720200642599,-500.0,0.00049315,120]
[331300767,1720200642609,-500.0,0.00049315,120]
[331300768,1720200642618,-500.10185136,0.00049315,120]
[331300769,1720200642627,-500.0,0.00049315,120]
[331300770,1720200642637,-500.0,0.00049315,120]
[331300771,1720200642647,-500.0,0.00049315,120]
[331300772,1720200642657,-500.0,0.00049315,120]
[331300773,1720200642670,-500.0,0.00049315,120]
[331300774,1720200642681,-541.26529119,0.00049315,120]
[331300775,1720200642691,-500.0,0.00049315,120]
[331300776,1720200642703,-500.0,0.00049315,120]
[331300777,1720200642713,-500.0,0.00049315,120]
[331300778,1720200642724,-513.29607748,0.00049315,120]
[331300779,1720200642734,-500.0,0.00049315,120]
[331300780,1720200642746,-526.89884444,0.00049315,120]
[331300781,1720200642756,-524.0653462,0.00049315,120]
[331300782,1720200642767,-500.0,0.00049315,120]
[331300783,1720200642779,-501.30596621,0.00049315,120]
[331300784,1720200642789,-176.35651072,0.00049315,120]
[331300785,1720200642799,-500.0,0.00049315,120]
[331300786,1720200642809,-500.0,0.00049315,120]
[331300787,1720200642819,-500.0,0.00049315,120]
[331300788,1720200642829,-500.0,0.00049315,120]
[331300789,1720200642840,-500.0,0.00049315,120]
[331300790,1720200642850,-500.0,0.00049315,120]
[331300791,1720200642860,-500.0,0.00049315,120]
[331300792,1720200642870,-500.0,0.00049315,120]
[331300793,1720200642880,-500.0,0.00049315,120]
[331300794,1720200642890,-500.0,0.00049315,120]
[331300795,1720200642900,-500.0,0.00049315,120]
[331300796,1720200642910,-498.21897384,0.00049315,120]
[331300797,1720200642920,-500.0,0.00049315,120]
[331300798,1720200642930,-500.0,0.00049315,120]
[331300799,1720200642940,-500.0,0.00049315,120]
[331300800,1720200642949,-500.0,0.00049315,120]
[331300801,1720200642959,-500.0,0.00049315,120]
[331300802,1720200642969,-500.0,0.00049315,120]
[331300803,1720200642980,-601.87869073,0.00049315,120]
[331300804,1720200642990,-626.41,0.00049315,120]
[331300805,1720200643000,-500.0,0.00049315,7]
[331300806,1720200643009,-500.0,0.00049315,120]
[331300807,1720200643019,-500.0,0.00049315,120]
[331300808,1720200643028,-500.0,0.00049315,120]
[331300809,1720200643038,-171.01339192,0.00049315,120]
[331300810,1720200643048,-380.99618679,0.00049315,120]
[331300811,1720200643057,-241.90196778,0.00049315,120]
[331300812,1720200643067,-500.0,0.00049315,120]
[331300813,1720200643077,-500.0,0.00049315,120]
[331300814,1720200643086,-500.0,0.00049315,120]
[331300815,1720200643096,-500.0,0.00049315,120]
[331300816,1720200643108,-500.0,0.00049315,120]
[331300817,1720200643118,-1000.0,0.00049315,120]
[331300818,1720200643127,-500.0,0.00049315,120]
[331300819,1720200643137,-500.0,0.00049315,120]
[331300820,1720200643146,-500.0,0.00049315,120]
[331300821,1720200643156,-500.0,0.00049315,120]
[331300822,1720200643165,-500.0,0.00049315,20]
[331300823,1720200643175,-500.0,0.00049315,120]
[331300824,1720200643184,-500.0,0.00049315,120]
[331300825,1720200643193,-500.0,0.00049315,120]
[331300826,1720200643202,-500.0,0.00049315,120]
[331300827,1720200643211,-500.0,0.00049315,120]
[331300828,1720200643221,-500.0,0.00049315,120]
[331300829,1720200643230,-500.0,0.00049315,120]
[331300830,1720200643240,-500.0,0.00049315,120]
[331300831,1720200643250,-500.7675816,0.00049315,120]
[331300832,1720200643260,-500.67955705,0.00049315,120]
[331300833,1720200643270,-500.0,0.00049315,120]
[331300834,1720200643280,-500.0,0.00049315,120]
[331300835,1720200643289,-500.0,0.00049315,120]
[331300836,1720200643299,-500.0,0.00049315,120]
[331300837,1720200643308,-500.0,0.00049315,120]
[331300838,1720200643318,-500.0,0.00049315,120]
[331300839,1720200643327,-500.0,0.00049315,120]
[331300840,1720200643337,-503.34282896,0.00049315,120]
[331300841,1720200643347,-500.0,0.00049315,120]
[331300842,1720200643356,-500.0,0.00049315,120]
[331300843,1720200643366,-511.45845683,0.00049315,120]
[331300844,1720200643375,-923.05,0.00049315,120]
[331300845,1720200643386,-500.0,0.00049315,120]
[331300846,1720200643395,-356.04202684,0.00049315,120]
[331300847,1720200643405,-507.40428864,0.00049315,120]
[331300848,1720200643414,-505.36214824,0.00049315,120]
[331300849,1720200643425,-500.0,0.00049315,120]
[331300850,1720200643434,-500.0,0.00049315,120]
[331300851,1720200643444,-520.99,0.00049315,120]
[331300852,1720200643453,-272.15171206,0.00049315,120]
[331300853,1720200643463,-500.0,0.00049315,120]
[331300854,1720200643472,-542.70942431,0.00049315,120]
[331300855,1720200643482,-497.84591713,0.00049315,120]
[331300856,1720200643491,-500.0,0.00049315,120]
[331300857,1720200643501,-500.0,0.00049315,120]
[331300858,1720200643510,-500.0,0.00049315,120]
[331300859,1720200643520,-500.0,0.00049315,120]
[331300860,1720200643529,-500.0,0.00049315,120]
[331300861,1720200643539,-500.0,0.00049315,120]
[331300862,1720200643548,-500.0,0.00049315,120]
[331300863,1720200643558,-500.0,0.00049315,120]
[331300864,1720200643568,-500.0,0.00049315,120]
[331300865,1720200643577,-500.0,0.00049315,120]
[331300866,1720200643586,-500.0,0.00049315,120]
[331300867,1720200643596,-500.0,0.00049315,120]
[331300868,1720200643607,-282.85,0.00049315,7]
[331300869,1720200643617,-500.0,0.00049315,120]
[331300870,1720200643627,-500.0,0.00049315,120]
[331300871,1720200643637,-500.0,0.00049315,120]
[331300872,1720200643647,-500.0,0.00049315,120]
[331300873,1720200643656,-500.0,0.00049315,120]
[331300874,1720200643670,-500.0,0.00049315,120]
[331300875,1720200643680,-500.0,0.00049315,120]
[331300876,1720200643689,-500.0,0.00049315,120]
[331300877,1720200643699,-500.0,0.00049315,120]
[331300878,1720200643710,-500.0,0.00049315,120]
[331300879,1720200643719,-500.0,0.00049315,120]
[331300880,1720200643731,-500.0,0.00049315,120]
[331300881,1720200643740,-500.0,0.00049315,120]
[331300882,1720200643752,-706.16,0.00049315,120]
[331300883,1720200643762,-306.06859678,0.00049315,120]
[331300884,1720200643775,-506.81,0.00049315,120]
[331300885,1720200643785,-500.0,0.00049315,120]
[331300886,1720200643796,-500.0,0.00049315,120]
[331300887,1720200643805,-500.0,0.00049315,120]
[331300888,1720200643815,-500.0,0.00049315,120]
[331300889,1720200643824,-500.0,0.00049315,120]
[331300890,1720200643835,-1085.28,0.00049315,120]
[331300891,1720200643845,-500.0,0.00049315,120]
[331300892,1720200643855,-500.0,0.00049315,120]
[331300893,1720200643864,-500.0,0.00049315,120]
[331300894,1720200643875,-847.84,0.00049315,120]
[331300895,1720200643885,-500.0,0.00049315,120]
[331300896,1720200643895,-500.0,0.00049315,120]
[331300897,1720200643905,-500.0,0.00049315,120]
[331300898,1720200643915,-500.0,0.00049315,120]
[331300899,1720200643924,-855.23,0.00049315,120]
[331300900,1720200643934,-500.0,0.00049315,120]
[331300901,1720200643944,-500.0,0.00049315,120]
[331300902,1720200643954,-571.67,0.00049315,120]
[331300903,1720200643964,-500.0,0.00049315,120]
[331300904,1720200643975,-500.0,0.00049315,120]
[331300905,1720200643988,-500.0,0.00049315,120]
[331300906,1720200643998,-500.0,0.00049315,120]
[331300907,1720200644010,-639.29,0.00049315,120]
[331300908,1720200644020,-500.0,0.00049315,120]
[331300909,1720200644031,-500.0,0.00049315,120]
[331300910,1720200644041,-500.0,0.00049315,120]
[331300911,1720200644052,-500.0,0.00049315,120]
[331300912,1720200644062,-500.0,0.00049315,120]
[331300913,1720200644174,-801.56,0.00049315,120]
[331300914,1720200644186,-500.0,0.00049315,120]
[331300915,1720200644196,-500.0,0.00049315,120]
[331300916,1720200644206,-500.0,0.00049315,120]
[331300917,1720200644216,-500.0,0.00049315,120]
[331300918,1720200644227,-500.0,0.00049315,120]
[331300919,1720200644237,-500.0,0.00049315,120]
[331300920,1720200644247,-500.0,0.00049315,120]
[331300921,1720200644256,-500.0,0.00049315,120]
[331300922,1720200644266,-500.0,0.00049315,120]
[331300923,1720200644276,-500.0,0.00049315,120]
[331300924,1720200644286,-500.0,0.00049315,120]
[331300925,1720200644296,-500.0,0.00049315,120]
[331300926,1720200644306,-500.0,0.00049315,120]
[331300927,1720200644316,-500.0,0.00049315,120]
[331300928,1720200644325,-500.0,0.00049315,120]
[331300929,1720200644335,-500.0,0.00049315,120]
[331300930,1720200644345,-500.0,0.00049315,120]
[331300931,1720200644355,-500.0,0.00049315,120]
[331300932,1720200644364,-500.0,0.00049315,120]
[331300933,1720200644374,-500.0,0.00049315,120]
[331300934,1720200644384,-500.0,0.00049315,120]
[331300935,1720200644394,-558.44263894,0.00049315,120]
[331300936,1720200644404,-500.0,0.00049315,120]
[331300937,1720200644414,-500.0,0.00049315,120]
[331300938,1720200644424,-588.82542121,0.00049315,120]
[331300939,1720200644433,-500.0,0.00049315,120]
[331300940,1720200644442,-151.0,0.00049315,14]
[331300941,1720200644452,-500.0,0.00049315,120]
[331300942,1720200644462,-500.0,0.00049315,120]
[331300943,1720200644471,-500.0,0.00049315,120]
[331300944,1720200644483,-500.0,0.00049315,120]
[331300945,1720200644492,-151.0,0.00049315,14]
[331300946,1720200644502,-500.0,0.00049315,120]
[331300947,1720200644511,-500.0,0.00049315,120]
[331300948,1720200644521,-520.53,0.00049315,120]
[331300949,1720200644530,-500.0,0.00049315,120]
[331300950,1720200644539,-500.0,0.00049315,120]
[331300951,1720200644548,-500.0,0.00049315,120]
[331300952,1720200644558,-520.55992843,0.00049315,120]
[331300953,1720200644567,-500.0,0.00049315,120]
[331300954,1720200644577,-500.0,0.00049315,120]
[331300955,1720200644586,-167.54516086,0.00049315,120]
[331300956,1720200644596,-500.0,0.00049315,120]
[331300957,1720200644605,-500.0,0.00049315,120]
[331300958,1720200644615,-500.0,0.00049315,120]
[331300959,1720200644624,-337.9361271,0.00049315,120]
[331300960,1720200644634,-500.0,0.00049315,120]
[331300961,1720200644643,-541.47490392,0.00049315,120]
[331300962,1720200644654,-500.0,0.00049315,120]
[331300963,1720200644670,-508.25109994,0.00049315,120]
[331300964,1720200644680,-500.0,0.00049315,120]
[331300965,1720200644691,-500.0,0.00049315,120]
[331300966,1720200644701,-500.0,0.00049315,120]
[331300967,1720200644712,-500.0,0.00049315,120]
[331300968,1720200644721,-250.0,0.00049315,120]
[331300969,1720200644732,-390.5733644,0.00049315,120]
[331300970,1720200644744,-262.04394412,0.00049315,120]
[331300971,1720200644755,-500.0,0.00049315,120]
[331300972,1720200644766,-500.0,0.00049315,120]
[331300973,1720200644776,-500.0,0.00049315,120]
[331300974,1720200644786,-500.0,0.00049315,120]
[331300975,1720200644796,-500.0,0.00049315,120]
[331300976,1720200644805,-500.0,0.00049315,120]
[331300977,1720200644814,-506.25905103,0.00049315,120]
[331300978,1720200644825,-500.0,0.00049315,120]
[331300979,1720200644835,-500.0,0.00049315,120]
[331300980,1720200644845,-500.0,0.00049315,120]
[331300981,1720200644855,-500.0,0.00049315,120]
[331300982,1720200644865,-612.94,0.00049315,120]
[331300983,1720200644874,-612.94,0.00049315,120]
[331300984,1720200644885,-500.0,0.00049315,120]
[331300985,1720200644895,-612.94,0.00049315,120]
[331300986,1720200644905,-612.94,0.00049315,120]
[331300987,1720200644915,-500.0,0.00049315,120]
[331300988,1720200644925,-612.94,0.00049315,120]
[331300989,1720200644935,-612.94,0.00049315,120]
[331300990,1720200644945,-1000.0,0.00049315,120]
[331300991,1720200644955,-612.94,0.00049315,120]
[331300992,1720200644966,-612.94,0.00049315,120]
[331300993,1720200644976,-612.94,0.00049315,120]
[331300994,1720200644986,-612.94,0.00049315,120]
[331300995,1720200644996,-612.94,0.00049315,120]
[331300996,1720200645006,-612.94,0.00049315,120]
[331300997,1720200645016,-612.94,0.00049315,120]
[331300998,1720200645025,-612.94,0.00049315,120]
[331300999,1720200645035,-500.0,0.00049315,120]
[331301000,1720200645044,-612.94,0.00049315,120]
[331301001,1720200645053,-612.94,0.00049315,120]
[331301002,1720200645063,-612.94,0.00049315,120]
[331301003,1720200645073,-612.94,0.00049315,120]
[331301004,1720200645083,-500.0,0.00049315,120]
[331301005,1720200645092,-612.94,0.00049315,120]
[331301006,1720200645102,-612.94,0.00049315,120]
[331301007,1720200645111,-612.94,0.00049315,120]
[331301008,1720200645121,-612.94,0.00049315,120]
[331301009,1720200645131,-612.94,0.00049315,120]
[331301010,1720200645141,-612.96304024,0.00049315,120]
[331301011,1720200645150,-500.0,0.00049315,120]
[331301012,1720200645160,-500.0,0.00049315,120]
[331301013,1720200645169,-500.0,0.00049315,120]
[331301014,1720200645178,-376.95860838,0.00049315,120]
[331301015,1720200645188,-642.42,0.00049315,120]
[331301016,1720200645198,-500.0,0.00049315,120]
[331301017,1720200645207,-500.0,0.00049315,120]
[331301018,1720200645217,-500.0,0.00049315,120]
[331301019,1720200645232,-500.0,0.00049315,120]
[331301020,1720200645242,-500.0,0.00049315,120]
[331301021,1720200645252,-500.0,0.00049315,120]
[331301022,1720200645262,-500.0,0.00049315,120]
[331301023,1720200645271,-500.0,0.00049315,120]
[331301024,1720200645280,-500.0,0.00049315,120]
[331301025,1720200645290,-500.0,0.00049315,120]
[331301026,1720200645299,-500.0,0.00049315,120]
[331301027,1720200645309,-500.0,0.00049315,120]
[331301028,1720200645319,-500.0,0.00049315,120]
[331301029,1720200645327,-500.0,0.00049315,120]
[331301030,1720200645337,-500.0,0.00049315,120]
[331301031,1720200645346,-277.67253967,0.00049315,120]
[331301032,1720200645356,-500.0,0.00049315,120]
[331301033,1720200645365,-200.0,0.00049315,7]
[331301034,1720200645375,-500.0,0.00049315,120]
[331301035,1720200645384,-500.0,0.00049315,120]
[331301036,1720200645394,-500.0,0.00049315,120]
[331301037,1720200645404,-500.0,0.00049315,120]
[331301038,1720200645414,-500.0,0.00049315,120]
[331301039,1720200645423,-500.0,0.00049315,120]
[331301040,1720200645434,-500.0,0.00049315,120]
[331301041,1720200645443,-500.0,0.00049315,120]
[331301042,1720200645453,-500.0,0.00049315,120]
[331301043,1720200645462,-500.0,0.00049315,120]
[331301044,1720200645472,-500.0,0.00049315,120]
[331301045,1720200645482,-500.0,0.00049315,120]
[331301046,1720200645492,-322.1666562,0.00049315,120]
[331301047,1720200645502,-500.0,0.00049315,30]
[331301048,1720200645511,-204.05004312,0.00049315,30]
[331301049,1720200645521,-821.62,0.00049315,120]
[331301050,1720200645542,-500.0,0.00049315,120]
[331301051,1720200645552,-555.69683009,0.00049315,120]
[331301052,1720200645561,-504.12768705,0.00049315,30]
[331301053,1720200645571,-500.0,0.00049315,120]
[331301054,1720200645580,-886.86,0.00049315,120]
[331301055,1720200645589,-501.47314881,0.00049315,120]
[331301056,1720200645599,-1902.81,0.00049315,60]
[331301057,1720200645608,-639.61156744,0.00049315,120]
[331301058,1720200645619,-500.0,0.00049315,120]
[331301059,1720200645629,-500.0,0.00049315,120]
[331301060,1720200645639,-842.07,0.00049315,120]
[331301061,1720200645648,-500.0,0.00049315,120]
[331301062,1720200645658,-500.0,0.00049315,120]
[331301064,1720200645673,-500.0,0.00049315,120]
[331301066,1720200645682,-721.6,0.00049315,120]
[331301067,1720200645691,-500.0,0.00049315,30]
[331301069,1720200645702,-500.0,0.00049315,120]
[331301073,1720200645712,-528.45,0.00049315,120]
[331301076,1720200645722,-500.0,0.00049315,120]
[331301079,1720200645733,-151.0,0.00049315,14]
[331301080,1720200645743,-500.0,0.00049315,120]
[331301083,1720200645754,-500.0,0.00049315,120]
[331301085,1720200645764,-500.0,0.00049315,120]
[331301087,1720200645777,-500.0,0.00049315,120]
[331301088,1720200645788,-500.0,0.00049315,120]
[331301089,1720200645885,-500.0,0.00049315,120]
[331301090,1720200645895,-500.0,0.00049315,120]
[331301091,1720200645904,-500.0,0.00049315,120]
[331301092,1720200645914,-500.0,0.00049315,120]
[331301093,1720200645923,-500.0,0.00049315,120]
[331301094,1720200645933,-479.47725456,0.00049315,120]
[331301095,1720200645942,-500.0,0.00049315,120]
[331301096,1720200645952,-500.0,0.00049315,120]
[331301097,1720200645970,-151.0,0.00049315,14]
[331301098,1720200645982,-1439.23,0.00049315,120]
[331301099,1720200645992,-174.75770642,0.00049315,120]
[331301100,1720200646002,-529.74608858,0.00049315,120]
[331301101,1720200646011,-500.0,0.00049315,120]
[331301102,1720200646020,-500.0,0.00049315,2]
[331301103,1720200646031,-500.0,0.00049315,120]
[331301104,1720200646040,-500.0,0.00049315,120]
[331301105,1720200646050,-193.83923262,0.00049315,120]
[331301106,1720200646060,-1773.31,0.00049315,120]
[331301107,1720200646071,-500.0,0.00049315,120]
[331301108,1720200646081,-500.0,0.00049315,120]
[331301109,1720200646091,-500.0,0.00049315,120]
[331301110,1720200646100,-500.0,0.00049315,120]
[331301111,1720200646110,-500.0,0.00049315,120]
[331301112,1720200646120,-1000.0,0.00049315,120]
[331301113,1720200646129,-598.82,0.00049315,120]
[331301114,1720200646139,-876.01,0.00049315,120]
[331301115,1720200646148,-500.0,0.00049315,120]
[331301116,1720200646158,-500.0,0.00049315,120]
[331301117,1720200646168,-151.0,0.00049315,14]
[331301118,1720200646177,-162.91540788,0.00049315,120]
[331301119,1720200646194,-500.0,0.00049315,120]
[331301120,1720200646204,-500.0,0.00049315,120]
[331301121,1720200646214,-500.0,0.00049315,120]
[331301122,1720200646224,-500.0,0.00049315,120]
[331301123,1720200646235,-500.0,0.00049315,120]
[331301124,1720200646245,-1964.53,0.00049315,120]
[331301125,1720200646254,-151.0,0.00049315,14]
[331301126,1720200646264,-500.0,0.00049315,120]
[331301127,1720200646274,-520.89678665,0.00049315,120]
[331301128,1720200646284,-500.0,0.00049315,120]
[331301129,1720200646294,-754.02,0.00049315,120]
[331301130,1720200646303,-500.0,0.00049315,120]
[331301131,1720200646314,-500.0,0.00049315,120]
[331301132,1720200646325,-500.0,0.00049315,120]
[331301133,1720200646334,-500.0,0.00049315,120]
[331301134,1720200646344,-500.0,0.00049315,120]
[331301135,1720200646353,-151.0,0.00049315,14]
[331301136,1720200646363,-500.0,0.00049315,120]
[331301137,1720200646372,-500.0,0.00049315,120]
[331301138,1720200646382,-500.0,0.00049315,120]
[331301139,1720200646391,-330.77778651,0.00049315,120]
[331301140,1720200646400,-500.0,0.00049315,120]
[331301141,1720200646410,-500.0,0.00049315,120]
[331301142,1720200646419,-500.0,0.00049315,120]
[331301143,1720200646428,-500.0,0.00049315,120]
[331301144,1720200646438,-500.0,0.00049315,120]
[331301145,1720200646446,-199.52490855,0.00049315,120]
[331301146,1720200646456,-605.23,0.00049315,120]
[331301147,1720200646465,-705.29,0.00049315,120]
[331301148,1720200646475,-500.0,0.00049315,120]
[331301149,1720200646485,-500.0,0.00049315,120]
[331301150,1720200646494,-500.0,0.00049315,120]
[331301151,1720200646503,-554.49,0.00049315,120]
[331301152,1720200646513,-500.0,0.00049315,120]
[331301153,1720200646523,-620.99,0.00049315,120]
[331301154,1720200646532,-500.0,0.00049315,120]
[331301155,1720200646542,-500.0,0.00049315,120]
[331301156,1720200646551,-617.24,0.00049315,120]
[331301158,1720200646561,-500.0,0.00049315,120]
[331301159,1720200646570,-500.0,0.00049315,120]
[331301161,1720200646580,-504.99510701,0.00049315,25]
[331301163,1720200646589,-500.0,0.00049315,120]
[331301165,1720200646599,-500.0,0.00049315,120]
[331301167,1720200646608,-500.0,0.00049315,120]
[331301168,1720200646618,-768.22,0.00049315,120]
[331301170,1720200646627,-500.0,0.00049315,120]
[331301172,1720200646637,-500.0,0.00049315,120]
[331301174,1720200646646,-151.0,0.00049315,14]
[331301176,1720200646656,-151.0,0.00049315,14]
[331301177,1720200646670,-500.0,0.00049315,120]
[331301179,1720200646680,-500.0,0.00049315,120]
[331301180,1720200646689,-500.0,0.00049315,120]
[331301181,1720200646698,-151.0,0.00049315,14]